[Event "November 21 Late 2023"]
[Site "https://www.chess.com"]
[Date "2023.11.21"]
[Round "4"]
[White "Martinez Alcantara, Jose Eduardo"]
[Black "De La Colina, Nicolas"]
[Result "1-0"]
[Board "26"]
[TimeControl "180+1"]
[WhiteFideId "3805662"]
[BlackFideId "30946921"]
[WhiteElo "2703"]
[BlackElo "2088"]
[WhiteTeam "PER"]
[BlackTeam "USA"]
[WhiteClock "0:01:22"]
[BlackClock "0:00:00"]

1. e4 {[%clk 0:03:00]}  c5 {[%clk 0:02:59]} 2. Nf3 {[%clk 0:03:00]}  Nc6 {[%clk 0:03:00]} 3. c3 {[%clk 0:03:01]}  Nf6 {[%clk 0:03:00]} 4. Bd3 {[%clk 0:03:02]}  Qc7 {[%clk 0:02:35]} 5. h3 {[%clk 0:03:01]}  d5 {[%clk 0:02:33]} 6. exd5 {[%clk 0:03:02]}  Nxd5 {[%clk 0:02:34]} 7. O-O {[%clk 0:03:02]}  g6 {[%clk 0:02:31]} 8. Bc4 {[%clk 0:03:01]}  Nb6 {[%clk 0:02:30]} 9. Bb5 {[%clk 0:02:58]}  Bg7 {[%clk 0:02:28]} 10. d4 {[%clk 0:02:58]}  cxd4 {[%clk 0:02:29]} 11. cxd4 {[%clk 0:02:59]}  O-O {[%clk 0:02:27]} 12. Be3 {[%clk 0:02:59]}  a6 {[%clk 0:02:24]} 13. Bxc6 {[%clk 0:02:53]}  Qxc6 {[%clk 0:02:25]} 14. Nbd2 {[%clk 0:02:52]}  Be6 {[%clk 0:02:17]} 15. Re1 {[%clk 0:02:42]}  Rac8 {[%clk 0:02:10]} 16. Bg5 {[%clk 0:02:41]}  Rfe8 {[%clk 0:02:07]} 17. Ne4 {[%clk 0:02:38]}  Bd5 {[%clk 0:01:57]} 18. Rc1 {[%clk 0:02:38]}  Qa4 {[%clk 0:01:42]} 19. Rxc8 {[%clk 0:02:37]}  Rxc8 {[%clk 0:01:36]} 20. Qxa4 {[%clk 0:02:30]}  Nxa4 {[%clk 0:01:37]} 21. b3 {[%clk 0:02:31]}  Nc3 {[%clk 0:01:03]} 22. Nxc3 {[%clk 0:02:24]}  Rxc3 {[%clk 0:01:03]} 23. Rxe7 {[%clk 0:02:25]}  h6 {[%clk 0:01:03]} 24. Re8+ {[%clk 0:02:15]}  Kh7 {[%clk 0:01:03]} 25. Be3 {[%clk 0:02:16]}  Rc2 {[%clk 0:00:58]} 26. Rd8 {[%clk 0:02:15]}  Bxf3 {[%clk 0:00:42]} 27. gxf3 {[%clk 0:02:16]}  Rxa2 {[%clk 0:00:43]} 28. Rd7 {[%clk 0:02:17]}  b5 {[%clk 0:00:40]} 29. Rxf7 {[%clk 0:02:17]}  Rb2 {[%clk 0:00:39]} 30. d5 {[%clk 0:02:17]}  Kg8 {[%clk 0:00:40]} 31. Ra7 {[%clk 0:02:11]}  Rxb3 {[%clk 0:00:33]} 32. d6 {[%clk 0:02:09]}  Rd3 {[%clk 0:00:31]} 33. d7 {[%clk 0:02:10]}  Bf6 {[%clk 0:00:29]} 34. Rxa6 {[%clk 0:02:07]}  Kf7 {[%clk 0:00:27]} 35. Ra7 {[%clk 0:02:06]}  Ke6 {[%clk 0:00:19]} 36. Ra6+ {[%clk 0:01:52]}  Rd6 {[%clk 0:00:19]} 37. Ra5 {[%clk 0:01:50]}  h5 {[%clk 0:00:17]} 38. Rxb5 {[%clk 0:01:50]}  Rxd7 {[%clk 0:00:16]} 39. Kg2 {[%clk 0:01:50]}  Kf7 {[%clk 0:00:17]} 40. f4 {[%clk 0:01:51]}  Re7 {[%clk 0:00:17]} 41. Kf3 {[%clk 0:01:50]}  Rd7 {[%clk 0:00:17]} 42. Ra5 {[%clk 0:01:45]}  Rb7 {[%clk 0:00:16]} 43. f5 {[%clk 0:01:37]}  gxf5 {[%clk 0:00:17]} 44. Rxf5 {[%clk 0:01:38]}  Kg6 {[%clk 0:00:18]} 45. Ra5 {[%clk 0:01:38]}  Rf7 {[%clk 0:00:17]} 46. Ra6 {[%clk 0:01:37]}  Kh7 {[%clk 0:00:17]} 47. Ke4 {[%clk 0:01:37]}  Bg7 {[%clk 0:00:14]} 48. f4 {[%clk 0:01:36]}  Re7+ {[%clk 0:00:13]} 49. Kf3 {[%clk 0:01:37]}  Rf7 {[%clk 0:00:12]} 50. Re6 {[%clk 0:01:33]}  Bh6 {[%clk 0:00:04]} 51. Ke4 {[%clk 0:01:31]}  Kg7 {[%clk 0:00:03]} 52. Bd4+ {[%clk 0:01:32]}  Kh7 {[%clk 0:00:04]} 53. f5 {[%clk 0:01:32]}  Bg5 {[%clk 0:00:03]} 54. Be5 {[%clk 0:01:24]}  Ra7 {[%clk 0:00:00]} 55. Re8 {[%clk 0:01:22]} 1-0

[Event "November 21 Late 2023"]
[Site "https://www.chess.com"]
[Date "2023.11.21"]
[Round "4"]
[White "Nihal Sarin"]
[Black "Janaszak, Dawid"]
[Result "1-0"]
[Board "27"]
[TimeControl "180+1"]
[WhiteFideId "25092340"]
[BlackFideId "1119206"]
[WhiteElo "2689"]
[BlackElo "2218"]
[WhiteTeam "IND"]
[BlackTeam "POL"]
[WhiteClock "0:03:05"]
[BlackClock "0:00:02"]

1. Nf3 {[%clk 0:02:55]}  g6 {[%clk 0:02:59]} 2. e3 {[%clk 0:02:56]}  Bg7 {[%clk 0:03:00]} 3. d4 {[%clk 0:02:57]}  Nf6 {[%clk 0:03:00]} 4. b3 {[%clk 0:02:58]}  O-O {[%clk 0:03:01]} 5. Bb2 {[%clk 0:02:59]}  d6 {[%clk 0:03:00]} 6. Be2 {[%clk 0:02:59]}  Nbd7 {[%clk 0:02:59]} 7. O-O {[%clk 0:03:00]}  e5 {[%clk 0:02:59]} 8. dxe5 {[%clk 0:03:01]}  Ng4 {[%clk 0:02:59]} 9. c4 {[%clk 0:03:02]}  Ngxe5 {[%clk 0:02:54]} 10. Nc3 {[%clk 0:03:02]}  Nxf3+ {[%clk 0:02:51]} 11. Bxf3 {[%clk 0:03:03]}  Ne5 {[%clk 0:02:52]} 12. Be2 {[%clk 0:03:04]}  Bf5 {[%clk 0:02:38]} 13. Rc1 {[%clk 0:03:05]}  Re8 {[%clk 0:02:25]} 14. Qd2 {[%clk 0:03:05]}  Qh4 {[%clk 0:02:23]} 15. Nb5 {[%clk 0:03:03]}  Re7 {[%clk 0:02:14]} 16. f4 {[%clk 0:03:03]}  Nc6 {[%clk 0:02:09]} 17. Bxg7 {[%clk 0:03:03]}  Kxg7 {[%clk 0:02:10]} 18. Nc3 {[%clk 0:03:03]}  Be4 {[%clk 0:01:43]} 19. g3 {[%clk 0:03:02]}  Qh3 {[%clk 0:01:41]} 20. Bf3 {[%clk 0:03:03]}  Bxf3 {[%clk 0:01:41]} 21. Rxf3 {[%clk 0:03:04]}  Qf5 {[%clk 0:01:11]} 22. Nd5 {[%clk 0:03:03]}  Rd7 {[%clk 0:01:11]} 23. Qc3+ {[%clk 0:03:03]}  f6 {[%clk 0:01:11]} 24. e4 {[%clk 0:03:03]}  Qe6 {[%clk 0:01:10]} 25. Re1 {[%clk 0:03:03]}  Ne7 {[%clk 0:01:08]} 26. Rfe3 {[%clk 0:03:02]}  c6 {[%clk 0:01:02]} 27. Nb4 {[%clk 0:03:02]}  Re8 {[%clk 0:00:55]} 28. Nc2 {[%clk 0:03:03]}  Ng8 {[%clk 0:00:50]} 29. Nd4 {[%clk 0:03:03]}  Qf7 {[%clk 0:00:49]} 30. Nf3 {[%clk 0:03:04]}  h6 {[%clk 0:00:40]} 31. e5 {[%clk 0:03:04]}  dxe5 {[%clk 0:00:39]} 32. fxe5 {[%clk 0:03:05]}  Rde7 {[%clk 0:00:30]} 33. Qd4 {[%clk 0:03:04]}  fxe5 {[%clk 0:00:23]} 34. Qxa7 {[%clk 0:03:04]}  e4 {[%clk 0:00:22]} 35. Qd4+ {[%clk 0:03:04]}  Qf6 {[%clk 0:00:20]} 36. Qxf6+ {[%clk 0:03:03]}  Nxf6 {[%clk 0:00:20]} 37. Nd2 {[%clk 0:03:04]}  Rd8 {[%clk 0:00:16]} 38. Nxe4 {[%clk 0:03:03]}  Rde8 {[%clk 0:00:16]} 39. Nxf6 {[%clk 0:03:04]}  Rxe3 {[%clk 0:00:02]} 40. Nxe8+ {[%clk 0:03:05]} 1-0

[Event "November 21 Late 2023"]
[Site "https://www.chess.com"]
[Date "2023.11.21"]
[Round "4"]
[White "ArtemDyachuk"]
[Black "Andreikin, Dmitry"]
[Result "0-1"]
[Board "28"]
[TimeControl "180+1"]
[BlackFideId "4158814"]
[WhiteElo "2575"]
[BlackElo "2741"]
[BlackTeam "FID"]
[WhiteClock "0:00:00"]
[BlackClock "0:00:47"]

1. e4 {[%clk 0:03:00]}  e5 {[%clk 0:02:59]} 2. Nf3 {[%clk 0:03:01]}  Nc6 {[%clk 0:02:59]} 3. Bc4 {[%clk 0:03:01]}  Bc5 {[%clk 0:02:58]} 4. c3 {[%clk 0:03:01]}  Nf6 {[%clk 0:02:58]} 5. d3 {[%clk 0:03:01]}  d6 {[%clk 0:02:58]} 6. O-O {[%clk 0:02:59]}  a6 {[%clk 0:02:57]} 7. Bb3 {[%clk 0:02:58]}  Ba7 {[%clk 0:02:58]} 8. Bg5 {[%clk 0:02:53]}  h6 {[%clk 0:02:57]} 9. Bh4 {[%clk 0:02:53]}  g5 {[%clk 0:02:57]} 10. Bg3 {[%clk 0:02:54]}  Qe7 {[%clk 0:02:50]} 11. Re1 {[%clk 0:02:46]}  Bg4 {[%clk 0:02:39]} 12. Nbd2 {[%clk 0:02:45]}  Nh5 {[%clk 0:02:38]} 13. Nf1 {[%clk 0:02:40]}  Nf4 {[%clk 0:02:30]} 14. Ne3 {[%clk 0:02:35]}  h5 {[%clk 0:02:10]} 15. Bxf4 {[%clk 0:02:01]}  gxf4 {[%clk 0:02:09]} 16. Nd5 {[%clk 0:02:02]}  Qd8 {[%clk 0:02:09]} 17. h3 {[%clk 0:01:55]}  Rh6 {[%clk 0:02:00]} 18. Kf1 {[%clk 0:01:54]}  Be6 {[%clk 0:01:56]} 19. d4 {[%clk 0:01:41]}  Qd7 {[%clk 0:01:54]} 20. Qd3 {[%clk 0:01:18]}  O-O-O {[%clk 0:01:52]} 21. Rad1 {[%clk 0:01:18]}  Rg8 {[%clk 0:01:48]} 22. Ba4 {[%clk 0:01:03]}  b5 {[%clk 0:01:38]} 23. Bc2 {[%clk 0:00:53]}  Rhg6 {[%clk 0:01:38]} 24. Nh4 {[%clk 0:00:50]}  Rxg2 {[%clk 0:01:23]} 25. Nf6 {[%clk 0:00:46]}  Bxh3 {[%clk 0:01:15]} 26. Nxd7 {[%clk 0:00:26]}  R2g3+ {[%clk 0:01:10]} 27. Ke2 {[%clk 0:00:24]}  Rxd3 {[%clk 0:01:09]} 28. Bxd3 {[%clk 0:00:22]}  Bxd7 {[%clk 0:01:02]} 29. d5 {[%clk 0:00:22]}  Ne7 {[%clk 0:00:57]} 30. Rg1 {[%clk 0:00:19]}  Bg4+ {[%clk 0:00:57]} 31. Nf3 {[%clk 0:00:20]}  f5 {[%clk 0:00:52]} 32. a4 {[%clk 0:00:08]}  Nxd5 {[%clk 0:00:50]} 33. axb5 {[%clk 0:00:07]}  Nf6 {[%clk 0:00:48]} 34. b6 {[%clk 0:00:04]}  Bxb6 {[%clk 0:00:47]} 35. Bxa6+ {[%clk 0:00:00]}  Kd8 {[%clk 0:00:47]} 0-1

[Event "November 21 Late 2023"]
[Site "https://www.chess.com"]
[Date "2023.11.21"]
[Round "4"]
[White "Erigaisi Arjun"]
[Black "WindWhistler11"]
[Result "1-0"]
[Board "29"]
[TimeControl "180+1"]
[WhiteFideId "35009192"]
[WhiteElo "2729"]
[BlackElo "2566"]
[WhiteTeam "IND"]
[WhiteClock "0:01:51"]
[BlackClock "0:00:19"]

1. b3 {[%clk 0:02:59]}  Nf6 {[%clk 0:02:56]} 2. Bb2 {[%clk 0:03:00]}  e6 {[%clk 0:02:56]} 3. Nf3 {[%clk 0:03:00]}  d5 {[%clk 0:02:53]} 4. g3 {[%clk 0:03:00]}  g6 {[%clk 0:02:52]} 5. Bg2 {[%clk 0:02:58]}  Bg7 {[%clk 0:02:53]} 6. O-O {[%clk 0:02:52]}  O-O {[%clk 0:02:52]} 7. c4 {[%clk 0:02:52]}  b6 {[%clk 0:02:47]} 8. Nc3 {[%clk 0:02:48]}  Bb7 {[%clk 0:02:48]} 9. d4 {[%clk 0:02:47]}  Na6 {[%clk 0:02:42]} 10. Rc1 {[%clk 0:02:47]}  dxc4 {[%clk 0:02:36]} 11. bxc4 {[%clk 0:02:48]}  c5 {[%clk 0:02:34]} 12. e3 {[%clk 0:02:45]}  Rc8 {[%clk 0:02:33]} 13. Nb5 {[%clk 0:02:45]}  Nb4 {[%clk 0:02:13]} 14. a3 {[%clk 0:02:36]}  Nc6 {[%clk 0:02:12]} 15. d5 {[%clk 0:02:37]}  exd5 {[%clk 0:02:09]} 16. Bxf6 {[%clk 0:02:37]}  Qxf6 {[%clk 0:01:57]} 17. cxd5 {[%clk 0:02:38]}  Ne7 {[%clk 0:01:43]} 18. e4 {[%clk 0:02:34]}  a6 {[%clk 0:01:38]} 19. e5 {[%clk 0:02:33]}  Qf5 {[%clk 0:01:36]} 20. Nd6 {[%clk 0:02:33]}  Qd7 {[%clk 0:01:24]} 21. Nxb7 {[%clk 0:02:26]}  Qxb7 {[%clk 0:01:20]} 22. d6 {[%clk 0:02:26]}  Nf5 {[%clk 0:01:09]} 23. Re1 {[%clk 0:02:22]}  Qd7 {[%clk 0:01:03]} 24. Bh3 {[%clk 0:02:22]}  Rfe8 {[%clk 0:01:03]} 25. Qd3 {[%clk 0:02:17]}  b5 {[%clk 0:00:55]} 26. Bxf5 {[%clk 0:02:17]}  gxf5 {[%clk 0:00:54]} 27. Nh4 {[%clk 0:02:16]}  Rxe5 {[%clk 0:00:50]} 28. Rxe5 {[%clk 0:02:16]}  Bxe5 {[%clk 0:00:51]} 29. Nxf5 {[%clk 0:02:17]}  Kh8 {[%clk 0:00:26]} 30. Re1 {[%clk 0:02:12]}  Re8 {[%clk 0:00:25]} 31. Nh6 {[%clk 0:01:56]}  Re6 {[%clk 0:00:21]} 32. Qf5 {[%clk 0:01:54]}  Kg7 {[%clk 0:00:20]} 33. Rxe5 {[%clk 0:01:51]}  Qxd6 {[%clk 0:00:19]} 34. Qxf7+ {[%clk 0:01:51]}  Kxh6 {[%clk 0:00:19]} 35. Rh5# {[%clk 0:01:51]} 1-0

[Event "November 21 Late 2023"]
[Site "https://www.chess.com"]
[Date "2023.11.21"]
[Round "4"]
[White "Tikhonov, Viacheslav"]
[Black "Firouzja, Alireza"]
[Result "0-1"]
[Board "30"]
[TimeControl "180+1"]
[WhiteFideId "44196407"]
[BlackFideId "12573981"]
[WhiteElo "2191"]
[BlackElo "2896"]
[WhiteTeam "RUS"]
[BlackTeam "FRA"]
[WhiteClock "0:00:00"]
[BlackClock "0:00:40"]

1. e4 {[%clk 0:03:00]}  a6 {[%clk 0:02:07]} 2. d4 {[%clk 0:02:59]}  c6 {[%clk 0:02:03]} 3. c4 {[%clk 0:02:51]}  d5 {[%clk 0:02:03]} 4. cxd5 {[%clk 0:01:52]}  cxd5 {[%clk 0:02:04]} 5. e5 {[%clk 0:01:53]}  Nc6 {[%clk 0:02:01]} 6. Nc3 {[%clk 0:01:44]}  Bf5 {[%clk 0:01:57]} 7. Nf3 {[%clk 0:01:32]}  e6 {[%clk 0:01:56]} 8. Bd3 {[%clk 0:01:32]}  Nge7 {[%clk 0:01:50]} 9. O-O {[%clk 0:01:26]}  Bg4 {[%clk 0:01:45]} 10. Be2 {[%clk 0:01:19]}  Nf5 {[%clk 0:01:42]} 11. Be3 {[%clk 0:01:20]}  Qb6 {[%clk 0:01:30]} 12. Na4 {[%clk 0:00:58]}  Qa7 {[%clk 0:01:29]} 13. Rc1 {[%clk 0:00:51]}  Bxf3 {[%clk 0:01:19]} 14. Bxf3 {[%clk 0:00:52]}  Ncxd4 {[%clk 0:01:20]} 15. Bg4 {[%clk 0:00:47]}  Nxe3 {[%clk 0:01:14]} 16. fxe3 {[%clk 0:00:44]}  Nc6 {[%clk 0:01:14]} 17. Qf3 {[%clk 0:00:25]}  Nxe5 {[%clk 0:01:13]} 18. Qf4 {[%clk 0:00:25]}  Bd6 {[%clk 0:01:07]} 19. Qg5 {[%clk 0:00:20]}  Nxg4 {[%clk 0:00:58]} 20. Qxg4 {[%clk 0:00:20]}  Qxe3+ {[%clk 0:00:54]} 21. Kh1 {[%clk 0:00:20]}  O-O {[%clk 0:00:49]} 22. Rc3 {[%clk 0:00:14]}  Qe4 {[%clk 0:00:42]} 23. Qxe4 {[%clk 0:00:14]}  dxe4 {[%clk 0:00:43]} 24. Nb6 {[%clk 0:00:15]}  Rad8 {[%clk 0:00:43]} 25. g4 {[%clk 0:00:13]}  f5 {[%clk 0:00:42]} 26. Nc4 {[%clk 0:00:11]}  Bc5 {[%clk 0:00:40]} 27. Ne5 {[%clk 0:00:00]}  Bd4 {[%clk 0:00:40]} 0-1

[Event "November 21 Late 2023"]
[Site "https://www.chess.com"]
[Date "2023.11.21"]
[Round "4"]
[White "Bortnyk, Olexandr"]
[Black "Pinheiro, Iung Alicio de O."]
[Result "1-0"]
[Board "32"]
[TimeControl "180+1"]
[WhiteFideId "14120828"]
[BlackFideId "2104350"]
[WhiteElo "2725"]
[BlackElo "2283"]
[WhiteTeam "UKR"]
[BlackTeam "BRA"]
[WhiteClock "0:01:13"]
[BlackClock "0:00:16"]

1. d4 {[%clk 0:02:59]}  Nf6 {[%clk 0:02:56]} 2. Nc3 {[%clk 0:02:59]}  d5 {[%clk 0:02:55]} 3. Bf4 {[%clk 0:02:59]}  g6 {[%clk 0:02:55]} 4. e3 {[%clk 0:02:59]}  Bg7 {[%clk 0:02:55]} 5. h4 {[%clk 0:02:59]}  h5 {[%clk 0:02:55]} 6. Nf3 {[%clk 0:02:57]}  O-O {[%clk 0:02:55]} 7. Qd2 {[%clk 0:02:43]}  c5 {[%clk 0:02:21]} 8. Ne5 {[%clk 0:02:32]}  cxd4 {[%clk 0:02:21]} 9. exd4 {[%clk 0:02:32]}  Nc6 {[%clk 0:02:20]} 10. f3 {[%clk 0:02:31]}  Bf5 {[%clk 0:02:13]} 11. Bb5 {[%clk 0:02:25]}  Qb6 {[%clk 0:02:05]} 12. Bxc6 {[%clk 0:02:00]}  bxc6 {[%clk 0:02:00]} 13. Na4 {[%clk 0:01:54]}  Qa6 {[%clk 0:01:52]} 14. b3 {[%clk 0:01:52]}  Nd7 {[%clk 0:01:42]} 15. Nxd7 {[%clk 0:01:51]}  Bxd7 {[%clk 0:01:42]} 16. Nc5 {[%clk 0:01:51]}  Qc8 {[%clk 0:01:42]} 17. O-O-O {[%clk 0:01:51]}  Kh7 {[%clk 0:01:35]} 18. Rhe1 {[%clk 0:01:47]}  Re8 {[%clk 0:01:35]} 19. a4 {[%clk 0:01:47]}  f6 {[%clk 0:01:27]} 20. g4 {[%clk 0:01:46]}  e5 {[%clk 0:01:25]} 21. dxe5 {[%clk 0:01:31]}  fxe5 {[%clk 0:01:22]} 22. Bg5 {[%clk 0:01:30]}  hxg4 {[%clk 0:01:04]} 23. h5 {[%clk 0:01:30]}  gxh5 {[%clk 0:01:05]} 24. Rh1 {[%clk 0:01:28]}  Kg6 {[%clk 0:01:01]} 25. Rdg1 {[%clk 0:01:23]}  Bf5 {[%clk 0:00:55]} 26. fxg4 {[%clk 0:01:22]}  hxg4 {[%clk 0:00:53]} 27. Bh6 {[%clk 0:01:18]}  Bf6 {[%clk 0:00:47]} 28. Qh2 {[%clk 0:01:14]}  Kf7 {[%clk 0:00:36]} 29. Rf1 {[%clk 0:01:14]}  Rg8 {[%clk 0:00:28]} 30. Qh5+ {[%clk 0:01:12]}  Bg6 {[%clk 0:00:24]} 31. Rxf6+ {[%clk 0:01:11]}  Kxf6 {[%clk 0:00:22]} 32. Qg5+ {[%clk 0:01:11]}  Kf7 {[%clk 0:00:20]} 33. Rf1+ {[%clk 0:01:12]}  Ke8 {[%clk 0:00:20]} 34. Qxe5+ {[%clk 0:01:13]}  Kd8 {[%clk 0:00:16]} 35. Bg5# {[%clk 0:01:13]} 1-0

[Event "November 21 Late 2023"]
[Site "https://www.chess.com"]
[Date "2023.11.21"]
[Round "4"]
[White "Tang, Andrew"]
[Black "Prithu Gupta"]
[Result "1-0"]
[Board "39"]
[TimeControl "180+1"]
[WhiteFideId "2059630"]
[BlackFideId "46618546"]
[WhiteElo "2589"]
[BlackElo "2344"]
[WhiteTeam "USA"]
[BlackTeam "IND"]
[WhiteClock "0:00:39"]
[BlackClock "0:00:01"]

1. d4 {[%clk 0:03:00]}  Nf6 {[%clk 0:02:57]} 2. c4 {[%clk 0:03:00]}  e6 {[%clk 0:02:46]} 3. Nc3 {[%clk 0:03:00]}  d5 {[%clk 0:02:44]} 4. cxd5 {[%clk 0:02:59]}  exd5 {[%clk 0:02:45]} 5. Bg5 {[%clk 0:02:58]}  Be7 {[%clk 0:02:46]} 6. e3 {[%clk 0:02:57]}  O-O {[%clk 0:02:46]} 7. Bd3 {[%clk 0:02:57]}  c6 {[%clk 0:02:42]} 8. Qc2 {[%clk 0:02:55]}  Nbd7 {[%clk 0:02:41]} 9. Nge2 {[%clk 0:02:54]}  Re8 {[%clk 0:02:41]} 10. O-O {[%clk 0:02:54]}  Nf8 {[%clk 0:02:41]} 11. f3 {[%clk 0:02:53]}  b5 {[%clk 0:02:14]} 12. e4 {[%clk 0:02:37]}  b4 {[%clk 0:02:13]} 13. Na4 {[%clk 0:02:37]}  dxe4 {[%clk 0:02:09]} 14. fxe4 {[%clk 0:02:28]}  Nxe4 {[%clk 0:01:41]} 15. Bxe4 {[%clk 0:01:49]}  Bxg5 {[%clk 0:01:38]} 16. Bxc6 {[%clk 0:01:43]}  Qc7 {[%clk 0:00:34]} 17. Bxe8 {[%clk 0:01:25]}  Qxc2 {[%clk 0:00:23]} 18. Bxf7+ {[%clk 0:01:22]}  Kh8 {[%clk 0:00:23]} 19. Bb3 {[%clk 0:01:23]}  Qf5 {[%clk 0:00:20]} 20. Ng3 {[%clk 0:01:18]}  Be3+ {[%clk 0:00:14]} 21. Kh1 {[%clk 0:01:17]}  Qxf1+ {[%clk 0:00:14]} 22. Rxf1 {[%clk 0:01:16]}  Ba6 {[%clk 0:00:14]} 23. Rd1 {[%clk 0:01:13]}  Rd8 {[%clk 0:00:07]} 24. Nc5 {[%clk 0:01:07]}  Bc8 {[%clk 0:00:05]} 25. Ne2 {[%clk 0:00:56]}  Bg4 {[%clk 0:00:04]} 26. Rd3 {[%clk 0:00:56]}  Bg5 {[%clk 0:00:02]} 27. Ng3 {[%clk 0:00:55]}  Bf6 {[%clk 0:00:03]} 28. h3 {[%clk 0:00:52]}  Bc8 {[%clk 0:00:03]} 29. d5 {[%clk 0:00:50]}  Ng6 {[%clk 0:00:03]} 30. Nge4 {[%clk 0:00:49]}  Nf4 {[%clk 0:00:03]} 31. Rd1 {[%clk 0:00:44]}  Bxb2 {[%clk 0:00:01]} 32. d6 {[%clk 0:00:43]}  Ng6 {[%clk 0:00:01]} 33. d7 {[%clk 0:00:39]}  Bxd7 {[%clk 0:00:01]} 1-0

[Event "November 21 Late 2023"]
[Site "https://www.chess.com"]
[Date "2023.11.21"]
[Round "4"]
[White "Khamrakulov, Djurabek"]
[Black "Van Dael, Siem"]
[Result "0-1"]
[Board "40"]
[TimeControl "180+1"]
[WhiteFideId "14201143"]
[BlackFideId "1049771"]
[WhiteElo "2535"]
[BlackElo "2252"]
[WhiteTeam "UZB"]
[BlackTeam "NED"]
[WhiteClock "0:00:00"]
[BlackClock "0:00:06"]

1. d4 {[%clk 0:03:00]}  Nf6 {[%clk 0:02:58]} 2. Nf3 {[%clk 0:03:01]}  g6 {[%clk 0:02:55]} 3. g3 {[%clk 0:03:00]}  Bg7 {[%clk 0:02:56]} 4. Bg2 {[%clk 0:03:01]}  O-O {[%clk 0:02:56]} 5. O-O {[%clk 0:03:01]}  d6 {[%clk 0:02:56]} 6. c4 {[%clk 0:03:02]}  Bf5 {[%clk 0:02:56]} 7. Nc3 {[%clk 0:03:02]}  Ne4 {[%clk 0:02:57]} 8. Nd2 {[%clk 0:03:01]}  Nxc3 {[%clk 0:02:53]} 9. bxc3 {[%clk 0:03:01]}  Bc8 {[%clk 0:02:53]} 10. Rb1 {[%clk 0:03:01]}  c6 {[%clk 0:02:53]} 11. a4 {[%clk 0:02:56]}  Na6 {[%clk 0:02:46]} 12. Ba3 {[%clk 0:02:56]}  Rb8 {[%clk 0:02:43]} 13. e3 {[%clk 0:02:51]}  Bf5 {[%clk 0:02:39]} 14. Rb3 {[%clk 0:02:49]}  Qa5 {[%clk 0:02:32]} 15. Qe2 {[%clk 0:02:39]}  Bc2 {[%clk 0:02:17]} 16. Bb4 {[%clk 0:02:29]}  Nxb4 {[%clk 0:02:05]} 17. Rxb4 {[%clk 0:02:30]}  c5 {[%clk 0:02:02]} 18. Rxb7 {[%clk 0:02:29]}  Rxb7 {[%clk 0:02:01]} 19. Bxb7 {[%clk 0:02:30]}  Qxc3 {[%clk 0:01:57]} 20. Be4 {[%clk 0:02:13]}  cxd4 {[%clk 0:01:47]} 21. Nb1 {[%clk 0:02:11]}  Bxb1 {[%clk 0:01:28]} 22. Rxb1 {[%clk 0:02:11]}  dxe3 {[%clk 0:01:26]} 23. fxe3 {[%clk 0:02:11]}  Qa3 {[%clk 0:01:20]} 24. Bc6 {[%clk 0:02:01]}  Qc5 {[%clk 0:01:18]} 25. Be4 {[%clk 0:01:50]}  e6 {[%clk 0:01:08]} 26. Kg2 {[%clk 0:01:45]}  Bh6 {[%clk 0:01:03]} 27. Rb3 {[%clk 0:01:44]}  Rc8 {[%clk 0:01:01]} 28. Bd3 {[%clk 0:00:50]}  Qxe3 {[%clk 0:00:53]} 29. Qxe3 {[%clk 0:00:51]}  Bxe3 {[%clk 0:00:53]} 30. Rb7 {[%clk 0:00:50]}  Bb6 {[%clk 0:00:46]} 31. Kf3 {[%clk 0:00:50]}  Kg7 {[%clk 0:00:45]} 32. h4 {[%clk 0:00:47]}  h5 {[%clk 0:00:45]} 33. Ke4 {[%clk 0:00:45]}  Kf6 {[%clk 0:00:43]} 34. Be2 {[%clk 0:00:45]}  Rc5 {[%clk 0:00:43]} 35. Rd7 {[%clk 0:00:43]}  Re5+ {[%clk 0:00:43]} 36. Kd3 {[%clk 0:00:43]}  Re3+ {[%clk 0:00:35]} 37. Kd2 {[%clk 0:00:43]}  Rxg3 {[%clk 0:00:34]} 38. Rxd6 {[%clk 0:00:43]}  Ke7 {[%clk 0:00:26]} 39. c5 {[%clk 0:00:29]}  Bxc5 {[%clk 0:00:22]} 40. Rc6 {[%clk 0:00:30]}  Bb6 {[%clk 0:00:21]} 41. Rc4 {[%clk 0:00:30]}  Ra3 {[%clk 0:00:20]} 42. Bd3 {[%clk 0:00:28]}  f5 {[%clk 0:00:18]} 43. Rc6 {[%clk 0:00:27]}  Rxa4 {[%clk 0:00:16]} 44. Bc4 {[%clk 0:00:26]}  Kd7 {[%clk 0:00:13]} 45. Bb5 {[%clk 0:00:26]}  Rd4+ {[%clk 0:00:13]} 46. Kc3 {[%clk 0:00:27]}  Ke7 {[%clk 0:00:13]} 47. Rxb6 {[%clk 0:00:27]}  axb6 {[%clk 0:00:12]} 48. Kxd4 {[%clk 0:00:28]}  Kf6 {[%clk 0:00:13]} 49. Bc6 {[%clk 0:00:27]}  e5+ {[%clk 0:00:13]} 50. Kd5 {[%clk 0:00:27]}  e4 {[%clk 0:00:09]} 51. Kd4 {[%clk 0:00:27]}  g5 {[%clk 0:00:09]} 52. hxg5+ {[%clk 0:00:20]}  Kxg5 {[%clk 0:00:10]} 53. Ke3 {[%clk 0:00:18]}  Kg4 {[%clk 0:00:08]} 54. Kf2 {[%clk 0:00:16]}  h4 {[%clk 0:00:08]} 55. Bb5 {[%clk 0:00:16]}  h3 {[%clk 0:00:08]} 56. Bf1 {[%clk 0:00:16]}  f4 {[%clk 0:00:05]} 57. Bb5 {[%clk 0:00:16]}  e3+ {[%clk 0:00:05]} 58. Kg1 {[%clk 0:00:16]}  Kg3 {[%clk 0:00:06]} 59. Bf1 {[%clk 0:00:03]}  h2+ {[%clk 0:00:05]} 60. Kh1 {[%clk 0:00:04]}  Kf2 {[%clk 0:00:06]} 61. Bb5 {[%clk 0:00:00]}  e2 {[%clk 0:00:06]} 0-1